[Event "Live Chess"]
[Site "Chess.com"]
[Date "2010.12.08"]
[Round "-"]
[White "hipposcottimus"]
[Black "iChubbyFace"]
[Result "1-0"]
[CurrentPosition "1k1r3r/p4ppp/1p2p3/1RR1P3/Q4P2/3P4/6PP/6K1 b - -"]
[Timezone "UTC"]
[ECO "B20"]
[ECOUrl "https://www.chess.com/openings/Sicilian-Defense"]
[UTCDate "2010.12.08"]
[UTCTime "04:35:21"]
[WhiteElo "1410"]
[BlackElo "1337"]
[TimeControl "120+12"]
[Termination "hipposcottimus won by resignation"]
[StartTime "04:35:21"]
[EndDate "2010.12.08"]
[EndTime "04:41:03"]
[Link "https://www.chess.com/game/live/75141574"]

1. e4 {[%clk 0:02:00]} 1... c5 {[%clk 0:02:00]} 2. Bb5 {[%clk 0:02:09.4]} 2... Qb6 {[%clk 0:02:07.8]} 3. Nc3 {[%clk 0:02:17.8]} 3... Nf6 {[%clk 0:02:07.8]} 4. e5 {[%clk 0:02:22.2]} 4... Ne4 {[%clk 0:02:08.4]} 5. Bxd7+ {[%clk 0:02:28.5]} 5... Bxd7 {[%clk 0:02:11.8]} 6. Nxe4 {[%clk 0:02:40.1]} 6... Nc6 {[%clk 0:02:14.7]} 7. f4 {[%clk 0:02:44.7]} 7... O-O-O {[%clk 0:02:14.4]} 8. Nf3 {[%clk 0:02:54]} 8... c4 {[%clk 0:02:22.9]} 9. d3 {[%clk 0:02:56.4]} 9... cxd3 {[%clk 0:02:30.3]} 10. cxd3 {[%clk 0:03:08]} 10... Bf5 {[%clk 0:02:39.8]} 11. Qe2 {[%clk 0:03:17.7]} 11... Qb4+ {[%clk 0:02:46.7]} 12. Bd2 {[%clk 0:03:27.9]} 12... Qxb2 {[%clk 0:02:47.7]} 13. O-O {[%clk 0:03:38.5]} 13... Nd4 {[%clk 0:02:54.5]} 14. Qe3 {[%clk 0:03:40]} 14... Nxf3+ {[%clk 0:02:59.4]} 15. Qxf3 {[%clk 0:03:47.7]} 15... Bxe4 {[%clk 0:03:09.4]} 16. Qxe4 {[%clk 0:03:41.6]} 16... Qxd2 {[%clk 0:03:18.1]} 17. Rfc1+ {[%clk 0:03:53.2]} 17... Kb8 {[%clk 0:03:24.5]} 18. Rab1 {[%clk 0:04:04.5]} 18... b6 {[%clk 0:03:33.3]} 19. a4 {[%clk 0:04:14.8]} 19... e6 {[%clk 0:03:42.9]} 20. Rc6 {[%clk 0:04:17.5]} 20... Qa5 {[%clk 0:03:16.4]} 21. Rb5 {[%clk 0:04:11.6]} 21... Bc5+ {[%clk 0:03:07.7]} 22. Rcxc5 {[%clk 0:04:17.9]} 22... Qxa4 {[%clk 0:03:08.9]} 23. Qxa4 {[%clk 0:04:21.3]} 1-0

[Event "Live Chess"]
[Site "Chess.com"]
[Date "2010.12.08"]
[Round "-"]
[White "venkatagirigollapall"]
[Black "hipposcottimus"]
[Result "0-1"]
[CurrentPosition "2kq3r/ppp2N2/2p5/5R2/4P3/3PB2p/PPPK1P2/7Q b - -"]
[Timezone "UTC"]
[ECO "C65"]
[ECOUrl "https://www.chess.com/openings/Ruy-Lopez-Opening-Berlin-Defense-4.Bxc6-dxc6-5.d3"]
[UTCDate "2010.12.08"]
[UTCTime "03:59:46"]
[WhiteElo "1247"]
[BlackElo "1410"]
[TimeControl "600+2"]
[Termination "hipposcottimus won - game abandoned"]
[StartTime "03:59:46"]
[EndDate "2010.12.08"]
[EndTime "04:10:04"]
[Link "https://www.chess.com/game/live/75133251"]

1. e4 {[%clk 0:10:00]} 1... e5 {[%clk 0:10:00]} 2. Nf3 {[%clk 0:09:57.8]} 2... Nc6 {[%clk 0:10:01.3]} 3. Bb5 {[%clk 0:09:56.1]} 3... Nf6 {[%clk 0:10:02.2]} 4. Bxc6 {[%clk 0:09:54]} 4... dxc6 {[%clk 0:10:03]} 5. d3 {[%clk 0:09:53]} 5... Bg4 {[%clk 0:09:56.9]} 6. h3 {[%clk 0:09:53.1]} 6... Bh5 {[%clk 0:09:57.8]} 7. g4 {[%clk 0:09:47.4]} 7... Nxg4 {[%clk 0:09:58.8]} 8. hxg4 {[%clk 0:09:36.5]} 8... Bxg4 {[%clk 0:09:58.9]} 9. Rg1 {[%clk 0:09:33.8]} 9... Bh5 {[%clk 0:09:59.4]} 10. Nbd2 {[%clk 0:09:24.4]} 10... Bc5 {[%clk 0:09:52.8]} 11. Rxg7 {[%clk 0:08:47.2]} 11... Qf6 {[%clk 0:09:45.7]} 12. Rg5 {[%clk 0:08:05.3]} 12... Bxf3 {[%clk 0:09:43.7]} 13. Nxf3 {[%clk 0:08:04.5]} 13... O-O-O {[%clk 0:09:43]} 14. Rxe5 {[%clk 0:07:29.2]} 14... Rde8 {[%clk 0:09:39.4]} 15. Rxc5 {[%clk 0:07:15.9]} 15... h5 {[%clk 0:09:36]} 16. Rf5 {[%clk 0:06:35.7]} 16... Qg6 {[%clk 0:09:24.5]} 17. Be3 {[%clk 0:05:59.1]} 17... h4 {[%clk 0:09:16.3]} 18. Kd2 {[%clk 0:05:51.8]} 18... h3 {[%clk 0:09:16.8]} 19. Qh1 {[%clk 0:05:48.9]} 19... Reg8 {[%clk 0:08:55.2]} 20. Bd4 {[%clk 0:05:39.7]} 20... Rh7 {[%clk 0:08:51.2]} 21. Rg1 {[%clk 0:05:28.3]} 21... Qh6+ {[%clk 0:08:38.9]} 22. Be3 {[%clk 0:05:00.6]} 22... Rxg1 {[%clk 0:08:38.6]} 23. Nxg1 {[%clk 0:04:15.8]} 23... Qh4 {[%clk 0:08:26.4]} 24. Nf3 {[%clk 0:04:03.9]} 24... Qd8 {[%clk 0:08:10]} 25. Ng5 {[%clk 0:03:49.8]} 25... Rh8 {[%clk 0:07:55.2]} 26. Nxf7 {[%clk 0:03:42]} 0-1

[Event "Live Chess"]
[Site "Chess.com"]
[Date "2010.12.08"]
[Round "-"]
[White "hipposcottimus"]
[Black "soondead"]
[Result "1-0"]
[CurrentPosition "2Q5/ppN3k1/6r1/8/8/8/PP3P1P/R4K2 b - -"]
[Timezone "UTC"]
[ECO "C40"]
[ECOUrl "https://www.chess.com/openings/Kings-Pawn-Opening-Kings-Knight-Variation"]
[UTCDate "2010.12.08"]
[UTCTime "03:46:01"]
[WhiteElo "1405"]
[BlackElo "1360"]
[TimeControl "360"]
[Termination "hipposcottimus won by resignation"]
[StartTime "03:46:01"]
[EndDate "2010.12.08"]
[EndTime "03:51:54"]
[Link "https://www.chess.com/game/live/75131690"]

1. e4 {[%clk 0:06:00]} 1... e5 {[%clk 0:06:00]} 2. Nf3 {[%clk 0:05:59.3]} 2... h5 {[%clk 0:05:49.2]} 3. Nxe5 {[%clk 0:05:57.2]} 3... h4 {[%clk 0:05:48.3]} 4. d4 {[%clk 0:05:54.2]} 4... d6 {[%clk 0:05:45.2]} 5. Nxf7 {[%clk 0:05:43.7]} 5... Kxf7 {[%clk 0:05:42.1]} 6. Bc4+ {[%clk 0:05:43.4]} 6... Ke8 {[%clk 0:05:38.6]} 7. Qf3 {[%clk 0:05:42.7]} 7... Qf6 {[%clk 0:05:33.1]} 8. Bf4 {[%clk 0:05:39.3]} 8... Nc6 {[%clk 0:05:25.7]} 9. e5 {[%clk 0:05:38.3]} 9... dxe5 {[%clk 0:05:24.5]} 10. dxe5 {[%clk 0:05:37.6]} 10... Nxe5 {[%clk 0:05:22.5]} 11. Qe4 {[%clk 0:05:35.9]} 11... Bb4+ {[%clk 0:05:15.1]} 12. c3 {[%clk 0:05:34.5]} 12... Bxc3+ {[%clk 0:05:14.1]} 13. Nxc3 {[%clk 0:05:32.9]} 13... Ne7 {[%clk 0:05:03.2]} 14. Bxe5 {[%clk 0:05:31.3]} 14... Qf5 {[%clk 0:04:52.7]} 15. Qd4 {[%clk 0:05:17.3]} 15... Nc6 {[%clk 0:04:31.2]} 16. Bb5 {[%clk 0:05:10.4]} 16... Bd7 {[%clk 0:04:26.5]} 17. Bxc6 {[%clk 0:05:09.2]} 17... Bxc6 {[%clk 0:04:23.9]} 18. O-O {[%clk 0:04:59.9]} 18... h3 {[%clk 0:04:18.2]} 19. Rfe1 {[%clk 0:04:54.7]} 19... Kf7 {[%clk 0:04:01.8]} 20. Bxg7 {[%clk 0:04:48.1]} 20... Rhg8 {[%clk 0:03:57.4]} 21. Re5 {[%clk 0:04:25.6]} 21... Qd7 {[%clk 0:03:22.2]} 22. Qf4+ {[%clk 0:04:21.6]} 22... Kxg7 {[%clk 0:03:17.2]} 23. Rg5+ {[%clk 0:04:17.8]} 23... Kh8 {[%clk 0:03:09]} 24. Qh4+ {[%clk 0:04:09.7]} 24... Qh7 {[%clk 0:03:07.5]} 25. Rh5 {[%clk 0:04:08.6]} 25... Rxg2+ {[%clk 0:02:51.1]} 26. Kf1 {[%clk 0:04:03.5]} 26... Bb5+ {[%clk 0:02:39.2]} 27. Nxb5 {[%clk 0:04:00.7]} 27... Qxh5 {[%clk 0:02:36.5]} 28. Qxh5+ {[%clk 0:03:58.6]} 28... Kg7 {[%clk 0:02:35.1]} 29. Qxh3 {[%clk 0:03:58.1]} 29... Rg6 {[%clk 0:02:33]} 30. Nxc7 {[%clk 0:03:55.8]} 30... Rc8 {[%clk 0:02:28.7]} 31. Qxc8 {[%clk 0:03:53.9]} 1-0

[Event "Live Chess"]
[Site "Chess.com"]
[Date "2010.12.08"]
[Round "-"]
[White "hipposcottimus"]
[Black "kaneohe"]
[Result "1-0"]
[CurrentPosition "5k2/p1p2r2/2p2b2/2q3P1/8/5Q2/PP5P/5R1K b - -"]
[Timezone "UTC"]
[ECO "C41"]
[ECOUrl "https://www.chess.com/openings/Philidor-Defense-3.Bc4-Nf6"]
[UTCDate "2010.12.08"]
[UTCTime "03:14:06"]
[WhiteElo "1693"]
[BlackElo "1604"]
[TimeControl "60"]
[Termination "hipposcottimus won on time"]
[StartTime "03:14:06"]
[EndDate "2010.12.08"]
[EndTime "03:16:04"]
[Link "https://www.chess.com/game/live/75125152"]

1. e4 {[%clk 0:01:00]} 1... e5 {[%clk 0:01:00]} 2. Nf3 {[%clk 0:00:59.7]} 2... d6 {[%clk 0:00:58.9]} 3. Bc4 {[%clk 0:00:59.3]} 3... Nf6 {[%clk 0:00:57.8]} 4. d4 {[%clk 0:00:59]} 4... exd4 {[%clk 0:00:55.9]} 5. e5 {[%clk 0:00:56.6]} 5... dxe5 {[%clk 0:00:54.5]} 6. Nxe5 {[%clk 0:00:55.4]} 6... Be6 {[%clk 0:00:53.4]} 7. Bxe6 {[%clk 0:00:53.8]} 7... fxe6 {[%clk 0:00:52.4]} 8. O-O {[%clk 0:00:51.7]} 8... Be7 {[%clk 0:00:51]} 9. Bg5 {[%clk 0:00:48.9]} 9... Nc6 {[%clk 0:00:50]} 10. Bxf6 {[%clk 0:00:48.4]} 10... Bxf6 {[%clk 0:00:46.6]} 11. Qh5+ {[%clk 0:00:48]} 11... g6 {[%clk 0:00:43.9]} 12. Nxg6 {[%clk 0:00:47.2]} 12... Rg8 {[%clk 0:00:40.4]} 13. Ne5+ {[%clk 0:00:43.9]} 13... Ke7 {[%clk 0:00:39.3]} 14. Nxc6+ {[%clk 0:00:42.9]} 14... bxc6 {[%clk 0:00:37]} 15. Qxh7+ {[%clk 0:00:41.7]} 15... Rg7 {[%clk 0:00:34.1]} 16. Qd3 {[%clk 0:00:41.4]} 16... Qe8 {[%clk 0:00:32.7]} 17. f4 {[%clk 0:00:40.6]} 17... Rd8 {[%clk 0:00:31.7]} 18. c3 {[%clk 0:00:40.1]} 18... e5 {[%clk 0:00:30.6]} 19. cxd4 {[%clk 0:00:39]} 19... exd4 {[%clk 0:00:27]} 20. f5 {[%clk 0:00:37.3]} 20... Qf7 {[%clk 0:00:25.1]} 21. Nd2 {[%clk 0:00:37]} 21... Kf8 {[%clk 0:00:24]} 22. Nc4 {[%clk 0:00:36.2]} 22... Qd7 {[%clk 0:00:20.6]} 23. Rae1 {[%clk 0:00:32.6]} 23... Qd5 {[%clk 0:00:19]} 24. Nd2 {[%clk 0:00:29.6]} 24... Re7 {[%clk 0:00:17.9]} 25. Nf3 {[%clk 0:00:28.9]} 25... Rxe1 {[%clk 0:00:16.5]} 26. Rxe1 {[%clk 0:00:28.7]} 26... Qe5 {[%clk 0:00:14.7]} 27. Rf1 {[%clk 0:00:28.3]} 27... Qd6 {[%clk 0:00:13.4]} 28. g3 {[%clk 0:00:23.9]} 28... Re8 {[%clk 0:00:12.5]} 29. Nxd4 {[%clk 0:00:21.4]} 29... Bxd4+ {[%clk 0:00:09.3]} 30. Kh1 {[%clk 0:00:19.9]} 30... Qc5 {[%clk 0:00:08.2]} 31. Qf3 {[%clk 0:00:19.5]} 31... Re7 {[%clk 0:00:06.6]} 32. f6 {[%clk 0:00:18.9]} 32... Rf7 {[%clk 0:00:03.8]} 33. g4 {[%clk 0:00:17.3]} 33... Bxf6 {[%clk 0:00:02.6]} 34. g5 {[%clk 0:00:16.2]} 1-0

[Event "Live Chess"]
[Site "Chess.com"]
[Date "2010.12.08"]
[Round "-"]
[White "Sebas_ec"]
[Black "hipposcottimus"]
[Result "0-1"]
[CurrentPosition "r2qkb1r/pp3ppp/8/2p1B3/2BNp3/2n5/PPPK1PPP/R6R w kq c6"]
[Timezone "UTC"]
[ECO "C46"]
[ECOUrl "https://www.chess.com/openings/Three-Knights-Opening"]
[UTCDate "2010.12.08"]
[UTCTime "03:13:13"]
[WhiteElo "1397"]
[BlackElo "1693"]
[TimeControl "60"]
[Termination "hipposcottimus won by resignation"]
[StartTime "03:13:13"]
[EndDate "2010.12.08"]
[EndTime "03:13:56"]
[Link "https://www.chess.com/game/live/75124942"]

1. e4 {[%clk 0:01:00]} 1... e5 {[%clk 0:01:00]} 2. Nc3 {[%clk 0:00:57.3]} 2... Nc6 {[%clk 0:00:58.8]} 3. Nf3 {[%clk 0:00:56.9]} 3... Nf6 {[%clk 0:00:58]} 4. d4 {[%clk 0:00:55.9]} 4... d5 {[%clk 0:00:56.7]} 5. dxe5 {[%clk 0:00:53.5]} 5... dxe4 {[%clk 0:00:56.3]} 6. Nd4 {[%clk 0:00:49.6]} 6... Nxe5 {[%clk 0:00:53.9]} 7. Bf4 {[%clk 0:00:44.3]} 7... Bg4 {[%clk 0:00:53]} 8. Bxe5 {[%clk 0:00:42.4]} 8... Bxd1 {[%clk 0:00:51.3]} 9. Kxd1 {[%clk 0:00:40]} 9... Nd5 {[%clk 0:00:48.9]} 10. Bc4 {[%clk 0:00:38.5]} 10... Nxc3+ {[%clk 0:00:47.5]} 11. Kd2 {[%clk 0:00:36.1]} 11... c5 {[%clk 0:00:47.2]} 0-1

[Event "Live Chess"]
[Site "Chess.com"]
[Date "2010.12.08"]
[Round "-"]
[White "latihan1"]
[Black "hipposcottimus"]
[Result "0-1"]
[CurrentPosition "3r3k/pppr2pp/7n/8/3P1Q2/1P6/1PP3PP/5RK1 w - -"]
[Timezone "UTC"]
[ECO "C00"]
[ECOUrl "https://www.chess.com/openings/French-Defense"]
[UTCDate "2010.12.08"]
[UTCTime "03:10:20"]
[WhiteElo "1812"]
[BlackElo "1693"]
[TimeControl "60"]
[Termination "hipposcottimus won on time"]
[StartTime "03:10:20"]
[EndDate "2010.12.08"]
[EndTime "03:12:32"]
[Link "https://www.chess.com/game/live/75124264"]

1. e4 {[%clk 0:01:00]} 1... e6 {[%clk 0:01:00]} 2. Bc4 {[%clk 0:00:59.1]} 2... d5 {[%clk 0:00:58.7]} 3. exd5 {[%clk 0:00:58.5]} 3... exd5 {[%clk 0:00:58.4]} 4. Bb3 {[%clk 0:00:58.2]} 4... Be7 {[%clk 0:00:57.9]} 5. Ne2 {[%clk 0:00:57.6]} 5... Nf6 {[%clk 0:00:57.6]} 6. O-O {[%clk 0:00:56]} 6... Be6 {[%clk 0:00:57.3]} 7. Ng3 {[%clk 0:00:54.8]} 7... O-O {[%clk 0:00:57.1]} 8. d3 {[%clk 0:00:53.4]} 8... d4 {[%clk 0:00:56.7]} 9. Bg5 {[%clk 0:00:50.9]} 9... Bxb3 {[%clk 0:00:55.3]} 10. axb3 {[%clk 0:00:50.4]} 10... Nd5 {[%clk 0:00:51.9]} 11. f4 {[%clk 0:00:46.5]} 11... Bxg5 {[%clk 0:00:49.4]} 12. fxg5 {[%clk 0:00:45.8]} 12... Qxg5 {[%clk 0:00:48.6]} 13. Ne4 {[%clk 0:00:45.2]} 13... Qg6 {[%clk 0:00:45.7]} 14. Nbd2 {[%clk 0:00:41.7]} 14... f5 {[%clk 0:00:43.2]} 15. Nc5 {[%clk 0:00:32.7]} 15... Ne3 {[%clk 0:00:41.4]} 16. Qe2 {[%clk 0:00:28.1]} 16... Nxf1 {[%clk 0:00:40.9]} 17. Rxf1 {[%clk 0:00:27.7]} 17... Nc6 {[%clk 0:00:40.5]} 18. Nd7 {[%clk 0:00:25.4]} 18... Rfe8 {[%clk 0:00:34.1]} 19. Qf3 {[%clk 0:00:23.7]} 19... Ne5 {[%clk 0:00:28.6]} 20. Qd5+ {[%clk 0:00:22.4]} 20... Nf7 {[%clk 0:00:24.6]} 21. Nf3 {[%clk 0:00:18]} 21... Rad8 {[%clk 0:00:24]} 22. Nfe5 {[%clk 0:00:16.7]} 22... Re7 {[%clk 0:00:17.4]} 23. Nxg6 {[%clk 0:00:14.9]} 23... Rexd7 {[%clk 0:00:16.2]} 24. Qxf5 {[%clk 0:00:10.7]} 24... Nd6 {[%clk 0:00:15.9]} 25. Ne7+ {[%clk 0:00:08.7]} 25... Rxe7 {[%clk 0:00:11.6]} 26. Qd5+ {[%clk 0:00:05.1]} 26... Kh8 {[%clk 0:00:09.4]} 27. Qxd4 {[%clk 0:00:03.8]} 27... Red7 {[%clk 0:00:04.9]} 28. Qf4 {[%clk 0:00:02.9]} 28... Nf7 {[%clk 0:00:03.1]} 29. d4 {[%clk 0:00:00.8]} 29... Nh6 {[%clk 0:00:01.9]} 0-1

[Event "Live Chess"]
[Site "Chess.com"]
[Date "2010.12.08"]
[Round "-"]
[White "hipposcottimus"]
[Black "meencurry"]
[Result "0-1"]
[CurrentPosition "6k1/1p4p1/4p2p/3pP3/5qP1/B6P/2q5/7K b - -"]
[Timezone "UTC"]
[ECO "B40"]
[ECOUrl "https://www.chess.com/openings/Sicilian-Defense-French-Variation"]
[UTCDate "2010.12.08"]
[UTCTime "03:06:13"]
[WhiteElo "1686"]
[BlackElo "1763"]
[TimeControl "60"]
[Termination "meencurry won by resignation"]
[StartTime "03:06:13"]
[EndDate "2010.12.08"]
[EndTime "03:08:05"]
[Link "https://www.chess.com/game/live/75123450"]

1. e4 {[%clk 0:01:00]} 1... e6 {[%clk 0:01:00]} 2. Nf3 {[%clk 0:00:59.7]} 2... c5 {[%clk 0:00:59.5]} 3. e5 {[%clk 0:00:59.4]} 3... Nc6 {[%clk 0:00:58.6]} 4. d4 {[%clk 0:00:59.1]} 4... cxd4 {[%clk 0:00:55.2]} 5. Nxd4 {[%clk 0:00:58.7]} 5... Nxd4 {[%clk 0:00:54.7]} 6. Qxd4 {[%clk 0:00:58.4]} 6... Ne7 {[%clk 0:00:52.8]} 7. Nc3 {[%clk 0:00:58]} 7... Nf5 {[%clk 0:00:51.6]} 8. f4 {[%clk 0:00:57.7]} 8... Nxd4 {[%clk 0:00:49.5]} 9. Bb5 {[%clk 0:00:54.3]} 9... Nxc2+ {[%clk 0:00:47.2]} 10. Kf2 {[%clk 0:00:52.4]} 10... Nxa1 {[%clk 0:00:47.2]} 11. Be3 {[%clk 0:00:51.8]} 11... a6 {[%clk 0:00:46]} 12. Ba4 {[%clk 0:00:49.2]} 12... Be7 {[%clk 0:00:43.7]} 13. Re1 {[%clk 0:00:47.2]} 13... O-O {[%clk 0:00:43.1]} 14. Kg1 {[%clk 0:00:46.9]} 14... d5 {[%clk 0:00:40.6]} 15. Bf2 {[%clk 0:00:46.3]} 15... Bb4 {[%clk 0:00:38.6]} 16. Rxa1 {[%clk 0:00:42.4]} 16... Bxc3 {[%clk 0:00:37.3]} 17. bxc3 {[%clk 0:00:42.1]} 17... Bd7 {[%clk 0:00:36.3]} 18. Rf1 {[%clk 0:00:41.8]} 18... Bxa4 {[%clk 0:00:34.7]} 19. c4 {[%clk 0:00:41.5]} 19... Bb5 {[%clk 0:00:34.7]} 20. cxb5 {[%clk 0:00:39.9]} 20... axb5 {[%clk 0:00:33.4]} 21. Bg3 {[%clk 0:00:39.6]} 21... Rxa2 {[%clk 0:00:32.2]} 22. Rf2 {[%clk 0:00:39.4]} 22... Rxf2 {[%clk 0:00:29.3]} 23. Kxf2 {[%clk 0:00:39.1]} 23... Qb6+ {[%clk 0:00:28.3]} 24. Kf3 {[%clk 0:00:37.9]} 24... Ra8 {[%clk 0:00:28.3]} 25. Bf2 {[%clk 0:00:37.6]} 25... Ra3+ {[%clk 0:00:27.7]} 26. Kg4 {[%clk 0:00:37]} 26... Qd8 {[%clk 0:00:25.5]} 27. Bc5 {[%clk 0:00:34]} 27... f6 {[%clk 0:00:23.9]} 28. Bxa3 {[%clk 0:00:32.9]} 28... fxe5 {[%clk 0:00:22.5]} 29. fxe5 {[%clk 0:00:32.6]} 29... h6 {[%clk 0:00:21.7]} 30. Kf3 {[%clk 0:00:32.4]} 30... Qg5 {[%clk 0:00:21.1]} 31. Bd6 {[%clk 0:00:32.1]} 31... Qf5+ {[%clk 0:00:19.8]} 32. Kg3 {[%clk 0:00:30.8]} 32... b4 {[%clk 0:00:18.9]} 33. h3 {[%clk 0:00:27.9]} 33... b3 {[%clk 0:00:17.1]} 34. Kh2 {[%clk 0:00:25.7]} 34... b2 {[%clk 0:00:15.5]} 35. g4 {[%clk 0:00:25.5]} 35... Qf4+ {[%clk 0:00:13.5]} 36. Kg2 {[%clk 0:00:23.8]} 36... b1=Q {[%clk 0:00:13]} 37. Ba3 {[%clk 0:00:21.7]} 37... Qc2+ {[%clk 0:00:11.9]} 38. Kh1 {[%clk 0:00:15.3]} 0-1

[Event "Live Chess"]
[Site "Chess.com"]
[Date "2010.12.08"]
[Round "-"]
[White "meencurry"]
[Black "hipposcottimus"]
[Result "1-0"]
[CurrentPosition "4r3/p4k2/8/6R1/4BPK1/P5P1/7r/8 b - -"]
[Timezone "UTC"]
[ECO "D10"]
[ECOUrl "https://www.chess.com/openings/Slav-Defense-3.Nc3"]
[UTCDate "2010.12.08"]
[UTCTime "03:03:42"]
[WhiteElo "1756"]
[BlackElo "1693"]
[TimeControl "60"]
[Termination "meencurry won on time"]
[StartTime "03:03:42"]
[EndDate "2010.12.08"]
[EndTime "03:06:00"]
[Link "https://www.chess.com/game/live/75122899"]

1. d4 {[%clk 0:01:00]} 1... d5 {[%clk 0:01:00]} 2. c4 {[%clk 0:01:00]} 2... c6 {[%clk 0:00:59.7]} 3. Nc3 {[%clk 0:01:00]} 3... Nd7 {[%clk 0:00:59.3]} 4. e3 {[%clk 0:01:00]} 4... e6 {[%clk 0:00:59]} 5. Nf3 {[%clk 0:00:59.8]} 5... Ngf6 {[%clk 0:00:58.7]} 6. Bd3 {[%clk 0:00:59.1]} 6... Bb4 {[%clk 0:00:58.4]} 7. a3 {[%clk 0:00:58.2]} 7... Bxc3+ {[%clk 0:00:58]} 8. bxc3 {[%clk 0:00:57.8]} 8... O-O {[%clk 0:00:56.5]} 9. cxd5 {[%clk 0:00:56.9]} 9... cxd5 {[%clk 0:00:55]} 10. Qc2 {[%clk 0:00:56]} 10... Qc7 {[%clk 0:00:52.8]} 11. Bb2 {[%clk 0:00:54.3]} 11... e5 {[%clk 0:00:51.9]} 12. dxe5 {[%clk 0:00:51]} 12... Nxe5 {[%clk 0:00:51.6]} 13. Nxe5 {[%clk 0:00:50]} 13... Qxe5 {[%clk 0:00:50.9]} 14. c4 {[%clk 0:00:49.8]} 14... Qg5 {[%clk 0:00:50.6]} 15. O-O {[%clk 0:00:46.2]} 15... Bh3 {[%clk 0:00:45.4]} 16. g3 {[%clk 0:00:42.2]} 16... Bxf1 {[%clk 0:00:41.8]} 17. Bxf6 {[%clk 0:00:40.1]} 17... Qxf6 {[%clk 0:00:39.9]} 18. Bxh7+ {[%clk 0:00:38.2]} 18... Kh8 {[%clk 0:00:38.6]} 19. Rxf1 {[%clk 0:00:35.8]} 19... dxc4 {[%clk 0:00:36.8]} 20. Be4 {[%clk 0:00:33.5]} 20... g6 {[%clk 0:00:31.1]} 21. Bg2 {[%clk 0:00:32.5]} 21... Kg7 {[%clk 0:00:30.4]} 22. Qxc4 {[%clk 0:00:31.2]} 22... Rh8 {[%clk 0:00:29.5]} 23. Qe4 {[%clk 0:00:28.6]} 23... Rae8 {[%clk 0:00:25.4]} 24. Qd4 {[%clk 0:00:26.5]} 24... Re5 {[%clk 0:00:21.1]} 25. f4 {[%clk 0:00:24.3]} 25... Rf5 {[%clk 0:00:17.1]} 26. Qxf6+ {[%clk 0:00:22.6]} 26... Rxf6 {[%clk 0:00:16.9]} 27. e4 {[%clk 0:00:21.6]} 27... Ra6 {[%clk 0:00:16.5]} 28. Rf3 {[%clk 0:00:19.1]} 28... Ra4 {[%clk 0:00:15.6]} 29. e5 {[%clk 0:00:17.7]} 29... f6 {[%clk 0:00:13.8]} 30. exf6+ {[%clk 0:00:15.4]} 30... Kxf6 {[%clk 0:00:12.3]} 31. Rb3 {[%clk 0:00:15]} 31... Rd4 {[%clk 0:00:10.4]} 32. Rxb7 {[%clk 0:00:13.2]} 32... Kf5 {[%clk 0:00:10.1]} 33. Rb5+ {[%clk 0:00:11.2]} 33... Kf6 {[%clk 0:00:07.7]} 34. Rg5 {[%clk 0:00:09.5]} 34... Rd1+ {[%clk 0:00:07.4]} 35. Kf2 {[%clk 0:00:07.7]} 35... Re8 {[%clk 0:00:06.4]} 36. Kf3 {[%clk 0:00:07.7]} 36... Rd3+ {[%clk 0:00:04.1]} 37. Kg4 {[%clk 0:00:06.6]} 37... Rd2 {[%clk 0:00:02.7]} 38. Be4 {[%clk 0:00:04.2]} 38... Rxh2 {[%clk 0:00:02.3]} 39. Rxg6+ {[%clk 0:00:03]} 39... Kf7 {[%clk 0:00:00.7]} 40. Rg5 {[%clk 0:00:01.8]} 1-0